fUSD/lending_fUSD_20250512
["ID","MTS","AMOUNT","RATE_DAILY","PERIOD"]
[360855819,1747075874413,-998.9,0.00014191,2]
[360855820,1747075874422,-858.49,0.00014191,2]
[360855821,1747075874434,-653.1,0.00014191,2]
[360855822,1747075874443,-2820.73,0.00014191,2]
[360855823,1747075874453,-619.84,0.00014191,2]
[360855824,1747075874462,-480.12,0.00014191,2]
[360855825,1747075874471,-697.24,0.00014191,2]
[360855826,1747075874487,-1430.33,0.00014191,2]
[360855827,1747075874502,-400.0,0.00014191,2]
[360855828,1747075874512,-572.78,0.00014191,2]
[360855829,1747075874522,-515.61709257,0.00014191,2]
[360855830,1747075874532,-536.72326041,0.00014191,2]
[360855831,1747075874542,-400.0,0.00014191,2]
[360855832,1747075874552,-500.17,0.00014191,2]
[360855833,1747075874562,-731.25,0.00014191,2]
[360855834,1747075874571,-400.0,0.00014191,2]
[360855835,1747075874580,-824.77,0.00014191,2]
[360855836,1747075874590,-400.0,0.00014191,2]
[360855837,1747075874600,-1613.24,0.00014191,2]
[360855838,1747075874614,-400.0,0.00014191,2]
[360855839,1747075874623,-400.0,0.00014191,2]
[360855840,1747075874633,-440.88,0.00014191,2]
[360855841,1747075874642,-400.0,0.00014191,2]
[360855842,1747075874654,-505.05,0.00014191,2]
[360855843,1747075874664,-907.83,0.00014191,2]
[360855844,1747075874673,-400.0,0.00014191,2]
[360855845,1747075874684,-416.68,0.00014191,2]
[360855846,1747075874695,-400.0,0.00014191,2]
[360855847,1747075874704,-422.84,0.00014191,2]
[360855848,1747075874713,-400.0,0.00014191,2]
[360855849,1747075874723,-1458.89,0.00014191,2]
[360855850,1747075874732,-400.0,0.00014191,2]
[360855851,1747075874744,-400.0,0.00014191,2]
[360855852,1747075874753,-400.0,0.00014191,2]
[360855853,1747075874763,-400.0,0.00014191,2]
[360855854,1747075874772,-400.0,0.00014191,2]
[360855855,1747075874782,-400.0,0.00014191,2]
[360855856,1747075874791,-100.59493521,0.00014191,2]
[360855857,1747075874816,-297.0,0.00014191,2]
[360855858,1747075875576,-400.0,0.00013698,2]
[360855859,1747075875586,-93.81506479,0.00014191,2]
[360855860,1747075875595,-400.0,0.00014191,2]
[360855861,1747075875606,-400.0,0.00014191,2]
[360855862,1747075875615,-172.77320014,0.00014191,2]
[360855863,1747075876015,-400.0,0.00013698,2]
[360855864,1747075876025,-400.0,0.00013698,2]
[360855865,1747075876034,-214.0526761,0.00013698,2]
[360855866,1747075876046,-185.9473239,0.00013698,2]
[360855867,1747075876055,-167.9726761,0.00013753,2]
[360855868,1747075876068,-232.0273239,0.00013753,2]
[360855869,1747075876078,-400.0,0.00013753,2]
[360855870,1747075876088,-400.0,0.00013753,2]
[360855871,1747075876098,-400.0,0.00013808,2]
[360855872,1747075876107,-400.0,0.00013808,2]
[360855873,1747075876116,-400.0,0.00013808,2]
[360855874,1747075876126,-400.0,0.00013863,2]
[360855875,1747075876135,-400.0,0.00013863,2]
[360855876,1747075876145,-400.0,0.00013917,2]
[360855877,1747075876154,-400.0,0.00013917,2]
[360855878,1747075876164,-345.27,0.00013972,2]
[360855879,1747075876173,-400.0,0.00013972,2]
[360855880,1747075876183,-6881.82618823,0.00014073,2]
[360855881,1747075876194,-741.84491093,0.00014102,2]
[360855882,1747075876205,-227.22679986,0.00014191,2]
[360855883,1747075876214,-400.0,0.00014191,2]
[360855884,1747075876224,-400.0,0.00014191,2]
[360855885,1747075876233,-400.0,0.00014191,2]
[360855886,1747075876246,-400.0,0.00014191,2]
[360855887,1747075876256,-650.22,0.00014191,2]
[360855888,1747075876265,-400.0,0.00014191,2]
[360855889,1747075876275,-400.0,0.00014191,2]
[360855890,1747075876284,-400.0,0.00014191,2]
[360855891,1747075876293,-400.0,0.00014191,2]
[360855892,1747075876302,-400.0,0.00014191,2]
[360855893,1747075876312,-400.0,0.00014191,2]
[360855894,1747075876321,-400.0,0.00014191,2]
[360855895,1747075876330,-555.41,0.00014191,2]
[360855896,1747075876339,-400.0,0.00014191,2]
[360855897,1747075876349,-400.0,0.00014191,2]
[360855898,1747075876358,-400.0,0.00014191,2]
[360855899,1747075876368,-400.0,0.00014191,2]
[360855900,1747075876377,-400.0,0.00014191,2]
[360855901,1747075876386,-427.35,0.00014191,2]
[360855902,1747075876395,-400.0,0.00014191,2]
[360855903,1747075876405,-400.0,0.00014191,2]
[360855904,1747075876414,-470.55,0.00014191,2]
[360855905,1747075876423,-404.69,0.00014191,2]
[360855906,1747075876432,-432.1,0.00014191,2]
[360855907,1747075876441,-483.4,0.00014191,2]
[360855908,1747075876452,-3279.65,0.00014191,2]
[360855909,1747075876461,-795.52,0.00014191,2]
[360855910,1747075876470,-400.0,0.00014191,2]
[360855911,1747075876479,-409.37,0.00014191,2]
[360855912,1747075876488,-400.0,0.00014191,2]
[360855913,1747075876500,-678.89,0.00014191,2]
[360855914,1747075876509,-400.0,0.00014191,2]
[360855915,1747075876518,-400.0,0.00014191,2]
[360855916,1747075876527,-400.0,0.00014191,2]
[360855917,1747075876537,-1368.22,0.00014191,2]
[360855918,1747075876546,-400.0,0.00014191,2]
[360855919,1747075876556,-631.89,0.00014191,2]
[360855920,1747075876565,-9258.09,0.00014191,2]
[360855921,1747075876576,-600.7,0.00014191,2]
[360855922,1747075876585,-211.10774088,0.00014191,2]
[360855923,1747075876594,-400.0,0.00014191,2]
[360855924,1747075876604,-400.0,0.00014191,2]
[360855925,1747075876614,-559.94,0.00014191,2]
[360855926,1747075876623,-1737.19,0.00014191,2]
[360855927,1747075876633,-355.8,0.00014191,2]
[360855928,1747075876642,-49310.73,0.00014191,2]
[360855929,1747075876653,-927.35,0.00014191,2]
[360855930,1747075876662,-400.0,0.00014191,2]
[360855931,1747075876671,-1092.75,0.00014191,2]
[360855932,1747075876681,-400.0,0.00014191,2]
[360855933,1747075876690,-830.96,0.00014191,2]
[360855934,1747075876699,-80143.65384202,0.00014191,2]
[360855935,1747075876712,-997.56615798,0.00014191,2]
[360855936,1747075876721,-687.42,0.00014191,2]
[360855937,1747075876731,-400.0,0.00014191,2]
[360855938,1747075876745,-448.54,0.00014191,2]
[360855939,1747075876754,-400.0,0.00014191,2]
[360855940,1747075876763,-912.82,0.00014191,2]
[360855941,1747075876773,-400.0,0.00014191,2]
[360855942,1747075876783,-400.0,0.00014191,2]
[360855943,1747075876792,-7401.08,0.00014191,2]
[360855944,1747075876801,-961.07,0.00014191,2]
[360855945,1747075876810,-400.0,0.00014191,2]
[360855946,1747075876821,-481.09,0.00014191,2]
[360855947,1747075876830,-400.0,0.00014191,2]
[360855948,1747075876839,-400.0,0.00014191,2]
[360855949,1747075876848,-612.96,0.00014191,2]
[360855950,1747075876857,-541.5,0.00014191,2]
[360855951,1747075876866,-84.73453057,0.00014191,2]
[360855952,1747075876878,-315.26546943,0.00014191,2]
[360855953,1747075876887,-2.58915897,0.00014191,2]
[360855954,1747075876898,-306.57,0.00014191,2]
[360855955,1747075876913,-2343.83084103,0.00014191,2]
[360855956,1747075876922,-3574.17,0.00014191,2]
[360855957,1747075876931,-1116.39,0.00014191,2]
[360855958,1747075876940,-400.0,0.00014191,2]
[360855959,1747075876950,-936.39,0.00014191,2]
[360855960,1747075876959,-400.0,0.00014191,2]
[360855961,1747075876968,-419.89,0.00014191,2]
[360855962,1747075876977,-400.0,0.00014191,2]
[360855963,1747075876986,-398.25554943,0.00014191,2]
[360855964,1747075877003,-318.08445057,0.00014191,2]
[360855965,1747075877012,-400.0,0.00014191,2]
[360855966,1747075877021,-342.55184355,0.00014191,2]
[360855967,1747075877030,-400.0,0.00014191,2]
[360855968,1747075877039,-436.07,0.00014191,2]
[360855969,1747075877048,-400.0,0.00014191,2]
[360855970,1747075877058,-1907.54,0.00014191,2]
[360855971,1747075877067,-476.89,0.00014191,2]
[360855972,1747075877077,-400.0,0.00014191,2]
[360855973,1747075877087,-423.71,0.00014191,2]
[360855974,1747075877097,-719.36,0.00014191,2]
[360855975,1747075877106,-400.0,0.00014191,2]
[360855976,1747075877116,-579.47,0.00014191,2]
[360855977,1747075877125,-1074.84,0.00014191,2]
[360855978,1747075877134,-400.0,0.00014191,2]
[360855979,1747075877144,-400.0,0.00014191,2]
[360855980,1747075877154,-400.0,0.00014191,2]
[360855981,1747075877164,-400.0,0.00014191,2]
[360855982,1747075877173,-453.88,0.00014191,2]
[360855983,1747075877306,-468.1,0.00014191,2]
[360855984,1747075877317,-400.0,0.00014191,2]
[360855985,1747075877327,-663.11,0.00014191,2]
[360855986,1747075877338,-920.94,0.00014191,2]
[360855987,1747075877348,-721.78,0.00014191,2]
[360855988,1747075877358,-400.0,0.00014191,2]
[360855989,1747075877367,-400.0,0.00014191,2]
[360855990,1747075877376,-450.53,0.00014191,2]
[360855991,1747075877386,-374.47454887,0.00014191,2]
[360855992,1747075877397,-25.52545113,0.00014191,2]
[360855993,1747075877406,-400.0,0.00014191,2]
[360855994,1747075877415,-678.29,0.00014191,2]
[360855995,1747075877424,-3206.93993759,0.0001421,2]
[360855996,1747075877643,-400.0,0.00013698,2]
[360855997,1747075877655,-231.502,0.00013738,2]
[360855998,1747075877664,-400.0,0.00013753,2]
[360855999,1747075877673,-400.0,0.00013808,2]
[360856000,1747075877683,-400.0,0.00013863,2]
[360856001,1747075877693,-400.0,0.00013917,2]
[360856002,1747075877703,-400.0,0.00013972,2]
[360856003,1747075877712,-400.0,0.00014027,2]
[360856004,1747075877723,-164.09046144,0.00014027,2]
[360856005,1747075877732,-400.0,0.00014082,2]
[360856006,1747075877746,-256.12800312,0.00014136,2]
[360856007,1747075877755,-228.85407544,0.0001421,2]
[360856008,1747075877767,-931.58871123,0.0001421,2]
[360856009,1747075877779,-1528.83168977,0.0001421,2]
[360856010,1747075877788,-873.67482606,0.00014226,2]
[360856011,1747075877799,-126.32517394,0.00014226,2]
[360856012,1747075877809,-3672.09517235,0.0001424,2]
[360856013,1747075877820,-752.63853883,0.0001424,2]
[360856014,1747075877832,-583.83,0.0001424,2]
[360856015,1747075877846,-4764.76,0.0001424,2]
[360856016,1747075877858,-1377.86651093,0.0001424,2]
[360856017,1747075877867,-1324.65,0.00014244,2]
[360856018,1747075877877,-5896.21441403,0.00014245,2]
[360856019,1747075877887,-500.0,0.00014245,2]
[360856020,1747075877896,-1324.65,0.00014245,2]
[360856021,1747075877906,-500.0,0.00014245,2]
[360856022,1747075877915,-987.88,0.00014246,2]
[360856023,1747075877925,-400.0,0.00014246,2]
[360856024,1747075877935,-400.0,0.00014246,2]
[360856025,1747075877944,-400.0,0.00014246,2]
[360856026,1747075877954,-400.0,0.00014246,2]
[360856027,1747075877963,-400.0,0.00014246,2]
[360856028,1747075877973,-400.0,0.00014246,2]
[360856029,1747075877982,-400.0,0.00014246,2]
[360856030,1747075877998,-400.0,0.00014246,2]
[360856031,1747075878009,-400.0,0.00014246,2]
[360856032,1747075878019,-528.63,0.00014246,2]
[360856033,1747075878030,-1550.47,0.00014246,2]
[360856034,1747075878039,-400.0,0.00014246,2]
[360856035,1747075878050,-400.0,0.00014246,2]
[360856036,1747075878060,-400.0,0.00014246,2]
[360856037,1747075878070,-625.67,0.00014246,2]
[360856038,1747075878079,-400.0,0.00014246,2]
[360856039,1747075878089,-400.0,0.00014246,2]
[360856040,1747075878099,-2177.6,0.00014246,2]
[360856041,1747075878109,-761.97,0.00014246,2]
[360856042,1747075878119,-225.33,0.00014246,2]
[360856043,1747075878129,-400.0,0.00014246,2]
[360856044,1747075878139,-1358.5,0.00014246,2]
[360856045,1747075878149,-536.07,0.00014246,2]
[360856046,1747075878158,-400.0,0.00014246,2]
[360856047,1747075878168,-704.13,0.00014246,2]
[360856048,1747075878178,-407.56661222,0.00014246,2]
[360856049,1747075878187,-400.0,0.00014246,2]
[360856050,1747075878197,-400.0,0.00014246,2]
[360856051,1747075878207,-998.9,0.00014246,2]
[360856052,1747075878217,-858.49,0.00014246,2]
[360856053,1747075878228,-653.1,0.00014246,2]
[360856054,1747075878238,-2820.73,0.00014246,2]
[360856055,1747075878254,-619.84,0.00014246,2]
[360856056,1747075878265,-480.12,0.00014246,2]
[360856057,1747075878275,-697.24,0.00014246,2]
[360856058,1747075878287,-1430.33,0.00014246,2]
[360856059,1747075878299,-400.0,0.00014246,2]
[360856060,1747075878309,-572.78,0.00014246,2]
[360856061,1747075878320,-400.0,0.00014246,2]
[360856062,1747075878330,-500.17,0.00014246,2]
[360856063,1747075878340,-731.25,0.00014246,2]
[360856064,1747075878351,-400.0,0.00014246,2]
[360856065,1747075878362,-824.77,0.00014246,2]
[360856066,1747075878373,-400.0,0.00014246,2]
[360856067,1747075878384,-1613.24,0.00014246,2]
[360856068,1747075878395,-510.65,0.00014246,2]
[360856069,1747075878406,-400.0,0.00014246,2]
[360856070,1747075878416,-440.88,0.00014246,2]
[360856071,1747075878426,-400.0,0.00014246,2]
[360856072,1747075878437,-505.05,0.00014246,2]
[360856073,1747075878447,-907.83,0.00014246,2]
[360856074,1747075878456,-400.0,0.00014246,2]
[360856075,1747075878466,-416.68,0.00014246,2]
[360856076,1747075878476,-400.0,0.00014246,2]
[360856077,1747075878486,-422.84,0.00014246,2]
[360856078,1747075878502,-400.0,0.00014246,2]
[360856079,1747075878513,-1458.89,0.00014246,2]
[360856080,1747075878523,-400.0,0.00014246,2]
[360856081,1747075878534,-400.0,0.00014246,2]
[360856082,1747075878544,-400.0,0.00014246,2]
[360856083,1747075878554,-400.0,0.00014246,2]
[360856084,1747075878564,-400.0,0.00014246,2]
[360856085,1747075878574,-502.39637243,0.00014246,2]
[360856086,1747075878585,-491.41,0.00014246,2]
[360856087,1747075878595,-400.0,0.00014246,2]
[360856088,1747075878607,-400.0,0.00014246,2]
[360856089,1747075878618,-400.0,0.00014246,2]
[360856090,1747075878628,-517.81,0.00014246,2]
[360856091,1747075878639,-400.0,0.00014246,2]
[360856092,1747075878652,-400.0,0.00014246,2]
[360856093,1747075878662,-650.22,0.00014246,2]
[360856094,1747075878672,-400.0,0.00014246,2]
[360856095,1747075878681,-411.37883796,0.00014246,2]
[360856096,1747075878690,-400.0,0.00014246,2]
[360856097,1747075878699,-400.0,0.00014246,2]
[360856098,1747075878708,-176.65763193,0.00014246,2]
[360856099,1747075878721,-223.34236807,0.00014246,2]
[360856100,1747075878732,-400.0,0.00014246,2]
[360856101,1747075878747,-105.53813832,0.00014246,2]
[360856102,1747075878759,-294.46186168,0.00014246,2]
[360856103,1747075878768,-317.91313884,0.00014246,2]
[360856104,1747075878780,-237.49686116,0.00014246,2]
[360856105,1747075878790,-257.62084084,0.00014246,2]
[360856106,1747075878806,-45.07236716,0.00014246,2]
[360856107,1747075878816,-513.48280933,0.00014246,2]
[360856108,1747075878826,-400.0,0.00014246,2]
[360856109,1747075878836,-400.0,0.00014246,2]
[360856110,1747075878846,-290.72129294,0.00014246,2]
[360856111,1747075878865,-109.27870706,0.00014246,2]
[360856112,1747075878874,-427.35,0.00014246,2]
[360856113,1747075878884,-400.0,0.00014246,2]
[360856114,1747075878893,-227.37737653,0.00014246,2]
[360856115,1747075878905,-172.62262347,0.00014246,2]
[360856116,1747075878914,-214.69152197,0.00014246,2]
[360856117,1747075878926,-255.85847803,0.00014246,2]
[360856118,1747075878935,-404.69,0.00014246,2]
[360856119,1747075878945,-256.28958724,0.00014246,2]
[360856120,1747075878957,-539.23041276,0.00014246,2]
[360856121,1747075878966,-400.0,0.00014246,2]
[360856122,1747075878976,-409.37,0.00014246,2]
[360856123,1747075878986,-678.89,0.00014246,2]
[360856124,1747075878999,-408.0,0.00014246,2]
[360856125,1747075879009,-1353.39798185,0.00014246,2]
[360856126,1747075879039,-400.0,0.00013698,2]
[360856127,1747075879049,-4063.98815862,0.00014152,2]
[360856128,1747075879060,-2817.83802961,0.00014152,2]
[360856129,1747075879070,-14.82201815,0.00014246,2]
[360856130,1747075879080,-427.83862837,0.00014246,2]
[360856131,1747075879090,-631.89,0.00014246,2]
[360856132,1747075879099,-1166.11132387,0.00014246,2]
[360856133,1747075879112,-923.86998,0.00014246,2]
[360856134,1747075879123,-788.000002,0.00014246,2]
[360856135,1747075879135,-941.46336271,0.00014246,2]
[360856136,1747075879146,-5438.64533142,0.00014246,2]
[360856137,1747075879157,-600.7,0.00014246,2]
[360856138,1747075879167,-400.0,0.00014246,2]
[360856139,1747075879176,-400.0,0.00014246,2]
[360856140,1747075879186,-559.94,0.00014246,2]
[360856141,1747075879195,-1737.19,0.00014246,2]
[360856142,1747075879205,-749.87344734,0.00014246,2]
[360856143,1747075879216,-10129.99999999,0.00014246,2]
[360856144,1747076496036,172.1,9.659e-05,2]
[360856145,1747076669162,820.25,0.00010106,2]
[360856146,1747076820837,150.0,0.00013699,7]
[360856147,1747076822368,-181.67556053,0.00011969,2]
[360856148,1747076832616,-163.2632268,0.00011969,2]
[360856153,1747076847104,-277.53645502,0.00011969,2]
[360856154,1747076861972,-275.30198589,0.00011969,2]
[360856155,1747076877628,-300.0,0.00011969,2]
[360856156,1747076892132,-150.0,0.00011955,2]
[360856157,1747076892156,-74.60748945,0.00011969,2]
[360856158,1747076907028,-333.20169054,0.00011969,2]
[360856159,1747076921994,-189.32716082,0.00011968,2]
[360856160,1747076937035,-80.01730159,0.00011968,2]
[360856161,1747076937058,-106.68835885,0.00011968,2]
[360856165,1747076953193,-57.96205567,0.00011968,2]
[360856166,1747076953217,-114.95701694,0.00011968,2]
[360856175,1747076968273,-121.52198459,0.00011968,2]
[360856176,1747076968303,-30.78658462,0.00011968,2]
[360856180,1747076969700,-469.21341538,0.00011968,2]
[360856181,1747076969728,-500.0,0.00011968,2]
[360856182,1747076969757,-500.0,0.00011968,2]
[360856183,1747076969783,-500.0,0.00011968,2]
[360856184,1747076969809,-500.0,0.00011968,2]
[360856185,1747076969835,-649.98091843,0.00011968,2]
[360856186,1747076969861,-500.0,0.00011968,2]
[360856187,1747076969882,-150.0,0.00011968,2]
[360856188,1747076969908,-6230.80566619,0.00011969,2]
[360856189,1747076971033,-10000.0,0.00011969,2]
[360856191,1747076973503,-6063.60792558,0.00011969,2]
[360856192,1747076973528,-1200.0,0.0001205,2]
[360856193,1747076973551,-200.0,0.0001205,2]
[360856194,1747076973572,-2536.39207442,0.00012052,2]
[360856195,1747076976377,-5370.25792558,0.00012052,2]
[360856196,1747076976400,-200.0,0.00012059,2]
[360856197,1747076976424,-200.0,0.00012067,2]
[360856198,1747076976445,-1259.75,0.00012069,2]
[360856199,1747076976467,-1000.0,0.00012077,2]
[360856200,1747076976488,-151.49,0.00012077,2]
[360856215,1747077032321,-168.81,0.00012117,2]
[360856216,1747077032331,-151.63,0.00012288,2]
[360856217,1747077032340,-200.0,0.0001229,2]
[360856218,1747077032350,-151.63,0.00012293,2]
[360856219,1747077032361,-200.0,0.00012296,2]
[360856220,1747077032371,-151.63,0.00012297,2]
[360856221,1747077032380,-293.0,0.00012299,2]
[360856222,1747077032390,-500.0,0.00012299,2]
[360856223,1747077032399,-151.63,0.00012301,2]
[360856224,1747077032409,-151.63,0.00012306,2]
[360856225,1747077032418,-151.63,0.0001231,2]
[360856226,1747077032428,-151.63,0.00012315,2]
[360856227,1747077032439,-58.15889,0.00012319,2]
[360856228,1747077032640,-93.47111,0.00012319,2]
[360856229,1747077032650,-151.63,0.00012323,2]
[360856230,1747077032659,-151.63,0.00012328,2]
[360856231,1747077032668,-212.54,0.00012328,2]
[360856232,1747077032677,-151.63,0.00012332,2]
[360856233,1747077032687,-151.63,0.00012336,2]
[360856234,1747077032696,-151.63,0.00012341,2]
[360856235,1747077032705,-151.63,0.00012345,2]
[360856236,1747077032719,-151.63,0.0001235,2]
[360856237,1747077032729,-820.25,0.0001237,2]
[360856238,1747077032738,-281.42887479,0.00012381,2]
[360856239,1747077032777,-494.67278957,0.00012381,2]
[360856240,1747077032787,-150.0,0.00012519,2]
[360856241,1747077032796,-197.39,0.00012583,2]
[360856242,1747077032805,-168.97,0.00012715,2]
[360856243,1747077032815,-1.86721043,0.00012763,2]
[360856244,1747077032826,-998.13278957,0.00012763,2]
[360856245,1747077032836,-1200.0,0.00012791,2]
[360856246,1747077032846,-1000.0,0.00012792,2]
[360856247,1747077032855,-2027.87779928,0.00012875,2]
[360856248,1747077032879,-588.80580272,0.00012875,2]
[360856249,1747077032889,-1000.0,0.00012896,2]
[360856250,1747077032901,-1000.0,0.0001294,2]
[360856251,1747077032910,-7637.60619728,0.00013,2]
[360856257,1747077033021,-188.54112368,0.00012305,2]
[360856259,1747077033032,-165.53530107,0.00012305,2]
[360856261,1747077033043,-439.12990314,0.00013,2]
[360856288,1747077038499,-405.55343538,0.00012289,2]
[360856289,1747077038509,-6.56277819,0.00013,2]
[360856290,1747077038616,-426.80085208,0.00013,2]
[360856291,1747077038629,-820.27940114,0.00013,2]
[360856296,1747077040610,-10969.62086817,0.00013,2]
[360856297,1747077040620,-300.16,0.00013073,2]
[360856298,1747077040629,-352.8,0.00013073,2]
[360856299,1747077040639,-162.56,0.00013073,2]
[360856300,1747077040649,-452.54,0.00013073,2]
[360856301,1747077040658,-452.54,0.00013073,2]
[360856302,1747077040668,-162.56,0.00013073,2]
[360856303,1747077040677,-452.54,0.00013073,2]
[360856304,1747077040687,-904.9,0.00013073,2]
[360856305,1747077040697,-1000.0,0.00013093,2]
[360856306,1747077040706,-1000.0,0.00013131,2]
[360856307,1747077040720,-207.4,0.00013144,2]
[360856308,1747077040730,-732.06721997,0.00013144,2]
[360856309,1747077040740,-1000.0,0.00013163,2]
[360856310,1747077040750,-1000.0,0.00013202,2]
[360856311,1747077040760,-200.0,0.00013255,2]
[360856312,1747077040769,-1000.0,0.00013263,2]
[360856313,1747077040780,-1000.0,0.00013264,2]
[360856314,1747077040789,-552.0,0.00013366,2]
[360856315,1747077040799,-1249.0,0.00013366,2]
[360856316,1747077040808,-584.0,0.00013366,2]
[360856317,1747077040817,-1000.0,0.00013367,2]
[360856318,1747077040827,-3965.91638591,0.000134,2]
[360856319,1747077040836,-3965.91638578,0.000134,2]
[360856320,1747077040846,-3965.91638578,0.000134,2]
[360856321,1747077040855,-3965.91638578,0.000134,2]
[360856322,1747077040865,-3965.91638578,0.000134,2]
[360856323,1747077040875,-3965.91638578,0.000134,2]
[360856324,1747077040884,-3965.91638578,0.000134,2]
[360856325,1747077040894,-3965.91638578,0.000134,2]
[360856326,1747077040903,-5939.0,0.00013411,2]
[360856327,1747077040912,-1000.0,0.00013421,2]
[360856328,1747077040922,-3965.91638578,0.00013452,2]
[360856329,1747077040931,-150.0,0.00013513,2]
[360856330,1747077040944,-200.0,0.00013517,2]
[360856331,1747077040954,-250.0,0.00013517,2]
[360856332,1747077040964,-3965.91638578,0.00013521,2]
[360856333,1747077040974,-1000.0,0.00013559,2]
[360856334,1747077040985,-1000.0,0.00013587,2]
[360856335,1747077040994,-3965.91638578,0.0001359,2]
[360856336,1747077041004,-1376.3652377,0.00013598,2]
[360856337,1747077041014,-1601.69152815,0.00013598,2]
[360856338,1747077041025,-165.2603095,0.00013598,2]
[360856339,1747077041035,-220.79646109,0.00013598,2]
[360856340,1747077041045,-45582.5307,0.00013598,2]
[360856341,1747077041054,-1000.0,0.00013598,2]
[360856342,1747077041064,-5290.1804,0.00013598,2]
[360856343,1747077041074,-1000.0,0.00013601,2]
[360856344,1747077041083,-3127.361,0.00013608,2]
[360856345,1747077041092,-154.0,0.00013608,2]
[360856346,1747077041101,-4029.0,0.00013608,2]
[360856347,1747077041110,-486.203,0.00013608,2]
[360856348,1747077041119,-218.66217265,0.00013608,2]
[360856349,1747077041128,-1000.0,0.00013628,2]
[360856350,1747077041137,-594.9451,0.00013629,2]
[360856351,1747077041146,-464.39586176,0.00013653,2]
[360856352,1747077041155,-3965.91638578,0.00013659,2]
[360856353,1747077041165,-632.83391156,0.00013673,2]
[360856354,1747077041175,-500.0,0.00013673,2]
[360856355,1747077041184,-500.0,0.00013673,2]
[360856356,1747077041193,-500.0,0.00013673,2]
[360856357,1747077041202,-500.0,0.00013673,2]
[360856358,1747077041213,-1000.0,0.00013689,2]
[360856359,1747077041222,-1000.0,0.00013692,2]
[360856360,1747077041231,-150.0,0.00013693,2]
[360856361,1747077041240,-450.0,0.00013698,2]
[360856362,1747077041249,-400.0,0.00013698,2]
[360856363,1747077041258,-450.0,0.00013698,2]
[360856364,1747077041267,-450.0,0.00013698,2]
[360856365,1747077041276,-400.0,0.00013698,2]
[360856366,1747077041285,-187.44093984,0.00013698,2]
[360856367,1747077041295,-159.75050052,0.00013698,2]
[360856368,1747077041304,-400.0,0.00013698,2]
[360856369,1747077041314,-400.0,0.00013698,2]
[360856370,1747077041323,-170.03785473,0.00013698,2]
[360856371,1747077041333,-222.36504643,0.00013698,2]
[360856372,1747077041343,-450.0,0.00013698,2]
[360856373,1747077041352,-450.0,0.00013698,2]
[360856374,1747077041361,-400.0,0.00013698,2]
[360856375,1747077041371,-450.0,0.00013698,2]
[360856376,1747077041381,-400.0,0.00013698,2]
[360856377,1747077041391,-450.0,0.00013698,2]
[360856378,1747077041401,-518.94,0.00013698,2]
[360856379,1747077041410,-450.0,0.00013698,2]
[360856380,1747077041420,-400.0,0.00013698,2]
[360856381,1747077041429,-400.0,0.00013698,2]
[360856382,1747077041439,-450.0,0.00013698,2]
[360856383,1747077041448,-450.0,0.00013698,2]
[360856384,1747077041457,-170.83297618,0.00013698,2]
[360856385,1747077041469,-450.0,0.00013698,2]
[360856386,1747077041479,-400.0,0.00013698,2]
[360856387,1747077041489,-502.87995419,0.00013698,2]
[360856388,1747077041499,-450.0,0.00013698,2]